fUSD/lending_fUSD_20240614
["ID","MTS","AMOUNT","RATE_DAILY","PERIOD"]
[329496957,1718395853915,-500.0,0.00022191,3]
[329496958,1718395853926,-544.67,0.00022191,3]
[329496959,1718395853938,-500.0,0.00022191,3]
[329496960,1718395853960,-1031.67,0.00022191,3]
[329496961,1718395854005,-633.62,0.00022191,3]
[329496962,1718395854084,-9200.91,0.00022191,3]
[329496963,1718395854096,-939.54,0.00022191,3]
[329496964,1718395854110,-500.0,0.00022191,3]
[329496965,1718395854135,-738.02,0.00022191,3]
[329496966,1718395854156,-538.75,0.00022191,3]
[329496967,1718395854172,-500.0,0.00022191,3]
[329496968,1718395854195,-2813.55,0.00022191,3]
[329496969,1718395854222,-500.0,0.00022191,3]
[329496970,1718395854256,-500.0,0.00022191,3]
[329496971,1718395854279,-1455.19,0.00022191,3]
[329496972,1718395854304,-3139.26,0.00022191,3]
[329496973,1718395854315,-151.0,0.00022191,7]
[329496974,1718395854326,-2152.17,0.00022191,3]
[329496975,1718395854339,-14002.03,0.00022191,3]
[329496976,1718395854349,-500.0,0.00022191,3]
[329496977,1718395854361,-1575.55,0.00022191,3]
[329496978,1718395854374,-30213.04,0.00022191,3]
[329496979,1718395854388,-500.0,0.00022191,3]
[329496980,1718395854402,-500.0,0.00022191,3]
[329496981,1718395854421,-287.398323,0.00022191,7]
[329496982,1718395854440,-500.0,0.00022191,3]
[329496983,1718395854456,-513.44,0.00022191,3]
[329496984,1718395854469,-1592.71,0.00022191,3]
[329496985,1718395854480,-5294.72,0.00022191,3]
[329496986,1718395854494,-500.0,0.00022191,3]
[329496987,1718395854512,-500.0,0.00022191,3]
[329496988,1718395854543,-559.05,0.00022191,3]
[329496989,1718395854558,-500.0,0.00022191,3]
[329496990,1718395854573,-744.96,0.00022191,3]
[329496991,1718395854610,-500.0,0.00022191,3]
[329496992,1718395854630,-500.0,0.00022191,3]
[329496993,1718395854643,-500.0,0.00022191,3]
[329496994,1718395854659,-500.0,0.00022191,3]
[329496995,1718395854722,-1637.39,0.00022191,3]
[329496996,1718395854737,-500.0,0.00022191,3]
[329496997,1718395854754,-2267.94,0.00022191,3]
[329496998,1718395854771,-151.0,0.00022191,7]
[329496999,1718395854784,-500.0,0.00022191,3]
[329497000,1718395854800,-246.614307,0.00022191,7]
[329497001,1718395854815,-1409.75,0.00022191,3]
[329497002,1718395854858,-500.0,0.00022191,3]
[329497003,1718395854880,-935.26,0.00022191,3]
[329497004,1718395854909,-584.01,0.00022191,3]
[329497005,1718395854932,-1623.64,0.00022191,3]
[329497006,1718395854952,-1212.33,0.00022191,3]
[329497007,1718395855003,-500.0,0.00022191,3]
[329497008,1718395855040,-653.06,0.00022191,3]
[329497009,1718395855054,-500.0,0.00022191,3]
[329497010,1718395855080,-500.0,0.00022191,3]
[329497011,1718395855110,-500.0,0.00022191,3]
[329497012,1718395855125,-2062.88,0.00022191,3]
[329497013,1718395855139,-500.0,0.00022191,3]
[329497014,1718395855158,-500.0,0.00022191,3]
[329497015,1718395855172,-500.0,0.00022191,3]
[329497016,1718395855190,-151.0,0.00022191,7]
[329497017,1718395855215,-863.57,0.00022191,3]
[329497018,1718395855241,-785.46,0.00022191,3]
[329497019,1718395855261,-151.0,0.00022191,7]
[329497020,1718395855280,-155.74,0.00022191,3]
[329497021,1718395855316,-1878.16,0.00022191,3]
[329497022,1718395855339,-1017.9,0.00022191,3]
[329497023,1718395855362,-500.0,0.00022191,3]
[329497024,1718395855412,-151.0,0.00022191,7]
[329497025,1718395855434,-567.66,0.00022191,3]
[329497026,1718395855470,-759.34,0.00022191,3]
[329497027,1718395855486,-5709.54,0.00022191,3]
[329497028,1718395855518,-500.0,0.00022191,3]
[329497029,1718395855539,-632.42,0.00022191,3]
[329497030,1718395855559,-5663.87,0.00022191,3]
[329497031,1718395855573,-940.97,0.00022191,3]
[329497032,1718395855589,-964.88,0.00022191,3]
[329497033,1718395855604,-500.0,0.00022191,3]
[329497034,1718395855637,-788.33,0.00022191,3]
[329497035,1718395855652,-161.571394,0.00022191,7]
[329497036,1718395855666,-500.0,0.00022191,3]
[329497037,1718395855681,-500.0,0.00022191,3]
[329497038,1718395855710,-839.72,0.00022191,3]
[329497039,1718395855732,-500.0,0.00022191,3]
[329497040,1718395855747,-500.0,0.00022191,3]
[329497041,1718395855761,-500.0,0.00022191,3]
[329497042,1718395855773,-500.0,0.00022191,3]
[329497043,1718395855786,-594.14,0.00022191,3]
[329497044,1718395855805,-1505.33,0.00022191,3]
[329497045,1718395855818,-1150.52,0.00022191,3]
[329497046,1718395855832,-992.07,0.00022191,3]
[329497047,1718395855857,-2085.76,0.00022191,3]
[329497048,1718395855871,-500.0,0.00022191,3]
[329497049,1718395855887,-500.0,0.00022191,3]
[329497050,1718395855903,-946.78,0.00022191,3]
[329497051,1718395855914,-862.04,0.00022191,3]
[329497052,1718395855927,-500.0,0.00022191,3]
[329497053,1718395855939,-697.13,0.00022191,3]
[329497054,1718395855956,-151.0,0.00022191,7]
[329497055,1718395855979,-629.32,0.00022191,3]
[329497056,1718395855993,-713.22,0.00022191,3]
[329497057,1718395856007,-500.0,0.00022191,3]
[329497058,1718395856021,-2680.278939,0.00022191,7]
[329497059,1718395856034,-151.0,0.00022191,7]
[329497060,1718395856075,-4718.86,0.00022191,3]
[329497061,1718395856089,-151.0,0.00022191,7]
[329497062,1718395856105,-1125.55,0.00022191,3]
[329497063,1718395856130,-527.7,0.00022191,3]
[329497064,1718395856146,-2680.278939,0.00022191,7]
[329497065,1718395856160,-161.775095,0.00022191,7]
[329497066,1718395856202,-1084.03,0.00022191,3]
[329497067,1718395856225,-151.0,0.00022191,7]
[329497068,1718395856245,-500.0,0.00022191,3]
[329497069,1718395856274,-151.0,0.00022191,7]
[329497070,1718395856291,-637.0,0.00022191,3]
[329497071,1718395856317,-500.0,0.00022191,3]
[329497072,1718395856334,-151.0,0.00022191,7]
[329497073,1718395856351,-1967.08,0.00022191,3]
[329497074,1718395856392,-3519.49,0.00022191,3]
[329497075,1718395856412,-1714.17,0.00022191,3]
[329497076,1718395856430,-500.0,0.00022191,3]
[329497077,1718395856442,-3442.68,0.00022191,3]
[329497078,1718395856455,-5463.42,0.00022191,3]
[329497079,1718395856476,-151.0,0.00022191,7]
[329497080,1718395856489,-3136.64,0.00022191,3]
[329497081,1718395856503,-686.16,0.00022191,3]
[329497082,1718395856519,-2601.95,0.00022191,3]
[329497083,1718395856554,-500.0,0.00022191,3]
[329497084,1718395856589,-780.84,0.00022191,3]
[329497085,1718395856602,-743.65,0.00022191,3]
[329497086,1718395856615,-709.1,0.00022191,3]
[329497087,1718395856630,-9598.27,0.00022191,3]
[329497088,1718395856642,-500.0,0.00022191,3]
[329497089,1718395856657,-923.73,0.00022191,3]
[329497090,1718395856679,-500.0,0.00022191,3]
[329497091,1718395856697,-500.0,0.00022191,3]
[329497092,1718395856715,-1243.56,0.00022191,3]
[329497093,1718395856733,-1031.09,0.00022191,3]
[329497094,1718395856750,-2185.74,0.00022191,3]
[329497095,1718395856770,-500.0,0.00022191,3]
[329497096,1718395856782,-151.0,0.00022191,7]
[329497097,1718395856804,-500.0,0.00022191,3]
[329497098,1718395856820,-2093.36,0.00022191,3]
[329497099,1718395856842,-500.0,0.00022191,3]
[329497100,1718395856855,-500.0,0.00022191,3]
[329497101,1718395856904,-4252.46,0.00022191,3]
[329497102,1718395856919,-151.0,0.00022191,7]
[329497103,1718395856931,-500.0,0.00022191,3]
[329497104,1718395856943,-2961.78677,0.000222,2]
[329497105,1718395856957,-224.08,0.00022209,2]
[329497106,1718395856970,-252.86,0.00022294,2]
[329497107,1718395856981,-443.25,0.00022331,2]
[329497108,1718395857001,-1474.44823664,0.00022386,2]
[329497109,1718395857015,-250.0,0.00022465,3]
[329497110,1718395857029,-500.0,0.00022465,2]
[329497111,1718395857044,-500.0,0.00022465,3]
[329497112,1718395857072,-500.0,0.00022465,2]
[329497113,1718395857090,-500.0,0.00022465,2]
[329497114,1718395857103,-500.0,0.00022465,3]
[329497115,1718395857125,-500.0,0.00022465,3]
[329497116,1718395857139,-500.0,0.00022465,3]
[329497117,1718395857153,-500.0,0.00022465,3]
[329497118,1718395857174,-500.0,0.00022465,3]
[329497119,1718395857204,-500.0,0.00022465,3]
[329497120,1718395857239,-500.0,0.00022465,2]
[329497121,1718395857265,-500.0,0.00022465,3]
[329497122,1718395857289,-500.0,0.00022465,3]
[329497123,1718395857320,-500.0,0.00022465,3]
[329497124,1718395857332,-500.0,0.00022465,3]
[329497125,1718395857352,-500.0,0.00022465,3]
[329497126,1718395857364,-500.0,0.00022465,3]
[329497127,1718395857377,-500.0,0.00022465,3]
[329497128,1718395857390,-500.0,0.00022465,3]
[329497129,1718395857426,-500.0,0.00022465,3]
[329497130,1718395857449,-500.0,0.00022465,3]
[329497131,1718395857466,-500.0,0.00022465,3]
[329497132,1718395857481,-1241.72,0.00022465,3]
[329497133,1718395857494,-500.0,0.00022465,3]
[329497134,1718395857510,-500.0,0.00022465,3]
[329497135,1718395857523,-500.0,0.00022465,3]
[329497136,1718395857537,-500.0,0.00022465,3]
[329497137,1718395857551,-500.0,0.00022465,3]
[329497138,1718395857565,-500.0,0.00022465,3]
[329497139,1718395857580,-151.0,0.00022465,7]
[329497140,1718395857592,-151.0,0.00022465,7]
[329497141,1718395857616,-500.0,0.00022465,3]
[329497142,1718395857628,-500.0,0.00022465,3]
[329497143,1718395857645,-500.0,0.00022465,3]
[329497144,1718395857671,-500.0,0.00022465,3]
[329497145,1718395857745,-500.0,0.00022465,3]
[329497146,1718395857765,-500.0,0.00022465,3]
[329497147,1718395857778,-500.0,0.00022465,3]
[329497148,1718395857791,-500.0,0.00022465,3]
[329497149,1718395857804,-500.0,0.00022465,3]
[329497150,1718395857816,-500.0,0.00022465,3]
[329497151,1718395857827,-500.0,0.00022465,3]
[329497152,1718395857844,-500.0,0.00022465,3]
[329497153,1718395857858,-500.0,0.00022465,3]
[329497154,1718395857869,-618.41623996,0.00022465,3]
[329497155,1718395857884,-500.0,0.00022465,3]
[329497156,1718395857901,-500.0,0.00022465,3]
[329497157,1718395857925,-500.0,0.00022465,3]
[329497158,1718395857939,-500.0,0.00022465,3]
[329497159,1718395857950,-970.82,0.00022465,3]
[329497160,1718395857969,-500.0,0.00022465,3]
[329497161,1718395857981,-500.0,0.00022465,3]
[329497162,1718395858005,-500.0,0.00022465,3]
[329497163,1718395858023,-500.0,0.00022465,3]
[329497164,1718395858047,-500.0,0.00022465,3]
[329497165,1718395858063,-651.79,0.00022465,3]
[329497166,1718395858076,-500.0,0.00022465,3]
[329497167,1718395858091,-500.0,0.00022465,3]
[329497168,1718395858104,-399.12,0.00022465,3]
[329497169,1718395858119,-500.0,0.00022465,3]
[329497170,1718395858147,-500.0,0.00022465,3]
[329497171,1718395858163,-716.56,0.00022465,3]
[329497172,1718395858175,-383.61102286,0.00022465,3]
[329497173,1718395858188,-3647.32,0.00022465,3]
[329497174,1718395858208,-500.0,0.00022465,3]
[329497175,1718395858224,-544.67,0.00022465,3]
[329497176,1718395858237,-500.0,0.00022465,3]
[329497177,1718395858251,-1031.67,0.00022465,3]
[329497178,1718395858264,-633.62,0.00022465,3]
[329497179,1718395858282,-9200.91,0.00022465,3]
[329497180,1718395858317,-939.54,0.00022465,3]
[329497181,1718395858330,-500.0,0.00022465,3]
[329497182,1718395858344,-738.02,0.00022465,3]
[329497183,1718395858356,-538.75,0.00022465,3]
[329497184,1718395858369,-500.0,0.00022465,3]
[329497185,1718395858383,-2813.55,0.00022465,3]
[329497186,1718395858395,-500.0,0.00022465,3]
[329497187,1718395858407,-500.0,0.00022465,3]
[329497188,1718395858451,-1455.19,0.00022465,3]
[329497189,1718395858468,-3139.26,0.00022465,3]
[329497190,1718395858496,-151.0,0.00022465,7]
[329497191,1718395858509,-2152.17,0.00022465,3]
[329497192,1718395858524,-12024.35277216,0.00022465,3]
[329497193,1718395859178,-500.0,0.00021917,2]
[329497194,1718395859200,-2489.87,0.00021917,2]
[329497195,1718395859228,-4475.47,0.00022191,3]
[329497196,1718395859240,-1977.67722784,0.00022465,3]
[329497197,1718395859254,-500.0,0.00022465,3]
[329497198,1718395859266,-1575.55,0.00022465,3]
[329497199,1718395859284,-30213.04,0.00022465,3]
[329497200,1718395859312,-500.0,0.00022465,3]
[329497201,1718395859337,-500.0,0.00022465,3]
[329497202,1718395859350,-500.0,0.00022465,3]
[329497203,1718395859360,-513.44,0.00022465,3]
[329497204,1718395859371,-1592.71,0.00022465,3]
[329497205,1718395859390,-5294.72,0.00022465,3]
[329497206,1718395859403,-500.0,0.00022465,3]
[329497207,1718395859417,-500.0,0.00022465,3]
[329497208,1718395859431,-559.05,0.00022465,3]
[329497209,1718395859461,-500.0,0.00022465,3]
[329497210,1718395859485,-744.96,0.00022465,3]
[329497211,1718395859496,-500.0,0.00022465,3]
[329497212,1718395859521,-500.0,0.00022465,3]
[329497213,1718395859537,-500.0,0.00022465,3]
[329497214,1718395859559,-500.0,0.00022465,3]
[329497215,1718395859569,-1637.39,0.00022465,3]
[329497216,1718395859581,-500.0,0.00022465,3]
[329497217,1718395859596,-2267.94,0.00022465,3]
[329497218,1718395859608,-500.0,0.00022465,3]
[329497219,1718395859624,-1409.75,0.00022465,3]
[329497220,1718395859635,-500.0,0.00022465,3]
[329497221,1718395859651,-584.01,0.00022465,3]
[329497222,1718395859668,-1623.64,0.00022465,3]
[329497223,1718395859689,-935.26,0.00022465,3]
[329497224,1718395859700,-1212.33,0.00022465,3]
[329497225,1718395859711,-500.0,0.00022465,3]
[329497226,1718395859725,-653.06,0.00022465,3]
[329497227,1718395859738,-500.0,0.00022465,3]
[329497228,1718395859759,-500.0,0.00022465,3]
[329497229,1718395859770,-500.0,0.00022465,3]
[329497230,1718395859784,-2062.88,0.00022465,3]
[329497231,1718395859848,-500.0,0.00022465,3]
[329497232,1718395859869,-500.0,0.00022465,3]
[329497233,1718395859932,-500.0,0.00022465,3]
[329497234,1718395859963,-863.57,0.00022465,3]
[329497235,1718395859976,-785.46,0.00022465,3]
[329497236,1718395859988,-1878.16,0.00022465,3]
[329497237,1718395859999,-1017.9,0.00022465,3]
[329497238,1718395860044,-500.0,0.00022465,3]
[329497239,1718395860057,-151.0,0.00022465,7]
[329497240,1718395860072,-567.66,0.00022465,3]
[329497241,1718395860084,-759.34,0.00022465,3]
[329497242,1718395860097,-5709.54,0.00022465,3]
[329497243,1718395860110,-500.0,0.00022465,3]
[329497244,1718395860126,-632.42,0.00022465,3]
[329497245,1718395860155,-5663.87,0.00022465,3]
[329497246,1718395860169,-940.97,0.00022465,3]
[329497247,1718395860200,-964.88,0.00022465,3]
[329497248,1718395860214,-500.0,0.00022465,3]
[329497249,1718395860230,-788.33,0.00022465,3]
[329497250,1718395860246,-500.0,0.00022465,3]
[329497251,1718395860264,-500.0,0.00022465,3]
[329497252,1718395860279,-500.0,0.00022465,3]
[329497253,1718395860330,-839.72,0.00022465,3]
[329497254,1718395860364,-500.0,0.00022465,3]
[329497255,1718395860379,-500.0,0.00022465,3]
[329497256,1718395860404,-500.0,0.00022465,3]
[329497257,1718395860468,-594.14,0.00022465,3]
[329497258,1718395860480,-1505.33,0.00022465,3]
[329497259,1718395860508,-1150.52,0.00022465,3]
[329497260,1718395860532,-992.07,0.00022465,3]
[329497261,1718395860546,-500.0,0.00022465,3]
[329497262,1718395860563,-500.0,0.00022465,3]
[329497263,1718395860576,-2085.76,0.00022465,3]
[329497264,1718395860587,-946.78,0.00022465,3]
[329497265,1718395860609,-862.04,0.00022465,3]
[329497266,1718395860625,-697.13,0.00022465,3]
[329497267,1718395860643,-161.756399,0.00022465,7]
[329497268,1718395860659,-629.32,0.00022465,3]
[329497269,1718395860676,-713.22,0.00022465,3]
[329497270,1718395860693,-500.0,0.00022465,3]
[329497271,1718395860716,-2680.278939,0.00022465,7]
[329497272,1718395860738,-4718.86,0.00022465,3]
[329497273,1718395860749,-1125.55,0.00022465,3]
[329497274,1718395860759,-527.7,0.00022465,3]
[329497275,1718395860769,-2680.278939,0.00022465,7]
[329497276,1718395860788,-1084.03,0.00022465,3]
[329497277,1718395860832,-151.0,0.00022465,7]
[329497278,1718395860843,-500.0,0.00022465,3]
[329497279,1718395860876,-637.0,0.00022465,3]
[329497280,1718395860894,-500.0,0.00022465,3]
[329497281,1718395860913,-1967.08,0.00022465,3]
[329497282,1718395860942,-3519.49,0.00022465,3]
[329497283,1718395860952,-1714.17,0.00022465,3]
[329497284,1718395860963,-500.0,0.00022465,3]
[329497285,1718395860986,-3442.68,0.00022465,3]
[329497286,1718395861016,-5463.42,0.00022465,3]
[329497287,1718395861040,-3136.64,0.00022465,3]
[329497288,1718395861092,-686.16,0.00022465,3]
[329497289,1718395861106,-279.52832682,0.00022465,3]
[329497290,1718395861133,-2601.95,0.00022465,3]
[329497291,1718395861164,-780.84,0.00022465,3]
[329497292,1718395861174,-743.65,0.00022465,3]
[329497293,1718395861189,-709.1,0.00022465,3]
[329497294,1718395861212,-9598.27,0.00022465,3]
[329497295,1718395861223,-500.0,0.00022465,3]
[329497296,1718395861242,-923.73,0.00022465,3]
[329497297,1718395861254,-500.0,0.00022465,3]
[329497298,1718395861265,-500.0,0.00022465,3]
[329497299,1718395861281,-1243.56,0.00022465,3]
[329497300,1718395861296,-1156.26016842,0.00022465,3]
[329497301,1718395861316,-1029.47983158,0.00022465,3]
[329497302,1718395861334,-500.0,0.00022465,3]
[329497303,1718395861348,-1031.09,0.00022465,3]
[329497304,1718395861360,-151.0,0.00022465,7]
[329497305,1718395861386,-500.0,0.00022465,3]
[329497306,1718395861409,-2093.36,0.00022465,3]
[329497307,1718395861427,-500.0,0.00022465,3]
[329497308,1718395861442,-500.0,0.00022465,3]
[329497309,1718395861463,-4252.46,0.00022465,3]
[329497310,1718395861474,-145.56290377,0.00022465,7]
[329497311,1718395862109,-402.23642563,0.00021917,2]
[329497312,1718395862164,-678.62357437,0.00021917,2]
[329497313,1718395862177,-15878.98,0.00021917,2]
[329497314,1718395862194,-500.0,0.00022191,3]
[329497315,1718395862216,-2489.87,0.00022191,3]
[329497316,1718395862227,-1080.86,0.00022191,3]
[329497317,1718395862243,-15878.98,0.00022191,3]
[329497318,1718395862255,-5.43709623,0.00022465,7]
[329497319,1718395862266,-500.0,0.00022465,3]
[329497320,1718395862293,-4475.47,0.00022465,3]
[329497321,1718395862304,-500.0,0.00022465,3]
[329497322,1718395862314,-2489.87,0.00022465,3]
[329497323,1718395862326,-1080.86,0.00022465,3]
[329497324,1718395862344,-444.45,0.00022513,2]
[329497325,1718395862354,-176.4,0.00022646,2]
[329497326,1718395862366,-250.0,0.00022739,3]
[329497327,1718395862379,-500.0,0.00022739,2]
[329497328,1718395862395,-500.0,0.00022739,3]
[329497329,1718395862409,-500.0,0.00022739,2]
[329497330,1718395862420,-500.0,0.00022739,2]
[329497331,1718395862452,-500.0,0.00022739,3]
[329497332,1718395862477,-500.0,0.00022739,3]
[329497333,1718395862492,-500.0,0.00022739,3]
[329497334,1718395862516,-500.0,0.00022739,3]
[329497335,1718395862526,-487.82550021,0.00022739,3]
[329497336,1718395862537,-500.0,0.00022739,3]
[329497337,1718395862549,-502.22091451,0.00022739,2]
[329497338,1718395862560,-500.0,0.00022739,3]
[329497339,1718395862595,-500.0,0.00022739,3]
[329497340,1718395862631,-452.38829473,0.00022739,3]
[329497341,1718395862672,-500.0,0.00022739,3]
[329497342,1718395862684,-500.0,0.00022739,3]
[329497343,1718395862714,-500.0,0.00022739,3]
[329497344,1718395862764,-500.0,0.00022739,3]
[329497345,1718395862786,-500.0,0.00022739,3]
[329497346,1718395862797,-500.0,0.00022739,3]
[329497347,1718395862811,-500.0,0.00022739,3]
[329497348,1718395862835,-500.0,0.00022739,3]
[329497349,1718395862847,-1241.72,0.00022739,3]
[329497350,1718395862876,-500.0,0.00022739,3]
[329497351,1718395862888,-500.0,0.00022739,3]
[329497352,1718395862900,-500.0,0.00022739,3]
[329497353,1718395862910,-500.0,0.00022739,3]
[329497354,1718395862927,-500.0,0.00022739,3]
[329497355,1718395862944,-500.0,0.00022739,3]
[329497356,1718395862957,-500.0,0.00022739,3]
[329497357,1718395862983,-500.0,0.00022739,3]
[329497358,1718395862995,-490.50037494,0.00022739,3]
[329497359,1718395863005,-500.0,0.00022739,3]
[329497360,1718395863024,-500.0,0.00022739,3]
[329497361,1718395863034,-500.0,0.00022739,3]
[329497362,1718395863055,-500.0,0.00022739,3]
[329497363,1718395863073,-500.0,0.00022739,3]
[329497364,1718395863092,-500.0,0.00022739,3]
[329497365,1718395863119,-500.0,0.00022739,3]
[329497366,1718395863133,-500.0,0.00022739,3]
[329497367,1718395863147,-500.0,0.00022739,3]
[329497368,1718395863181,-500.0,0.00022739,3]
[329497369,1718395863206,-500.0,0.00022739,3]
[329497370,1718395863220,-500.0,0.00022739,3]
[329497371,1718395863234,-500.0,0.00022739,3]
[329497372,1718395863248,-500.0,0.00022739,3]
[329497373,1718395863259,-970.82,0.00022739,3]
[329497374,1718395863271,-500.0,0.00022739,3]
[329497375,1718395863282,-500.0,0.00022739,3]
[329497376,1718395863317,-500.0,0.00022739,3]
[329497377,1718395863328,-500.0,0.00022739,3]
[329497378,1718395863340,-500.0,0.00022739,3]
[329497379,1718395863354,-651.79,0.00022739,3]
[329497380,1718395863364,-500.0,0.00022739,3]
[329497381,1718395863384,-500.0,0.00022739,3]
[329497382,1718395863396,-500.0,0.00022739,3]
[329497383,1718395863407,-500.0,0.00022739,3]
[329497384,1718395863488,-3647.32,0.00022739,3]
[329497385,1718395863506,-500.0,0.00022739,3]
[329497386,1718395863534,-544.67,0.00022739,3]
[329497387,1718395863552,-239.70854764,0.00022739,3]
[329497388,1718395863566,-1031.67,0.00022739,3]
[329497389,1718395863595,-633.62,0.00022739,3]
[329497390,1718395863607,-9200.91,0.00022739,3]
[329497391,1718395863632,-939.54,0.00022739,3]
[329497392,1718395863648,-500.0,0.00022739,3]
[329497393,1718395863661,-738.02,0.00022739,3]
[329497394,1718395863674,-538.75,0.00022739,3]
[329497395,1718395863686,-500.0,0.00022739,3]
[329497396,1718395863697,-2813.55,0.00022739,3]
[329497397,1718395863714,-500.0,0.00022739,3]
[329497398,1718395863726,-500.0,0.00022739,3]
[329497399,1718395863745,-1455.19,0.00022739,3]
[329497400,1718395863758,-3139.26,0.00022739,3]
[329497401,1718395863778,-151.0,0.00022739,7]
[329497402,1718395863819,-2152.17,0.00022739,3]
[329497403,1718395863863,-14002.03,0.00022739,3]
[329497404,1718395863876,-500.0,0.00022739,3]
[329497405,1718395863889,-1575.55,0.00022739,3]
[329497406,1718395863900,-30213.04,0.00022739,3]
[329497407,1718395863920,-500.0,0.00022739,3]
[329497408,1718395863939,-500.0,0.00022739,3]
[329497409,1718395863951,-500.0,0.00022739,3]
[329497410,1718395863973,-513.44,0.00022739,3]
[329497411,1718395863999,-1592.71,0.00022739,3]
[329497412,1718395864023,-5294.72,0.00022739,3]
[329497413,1718395864068,-500.0,0.00022739,3]
[329497414,1718395864080,-500.0,0.00022739,3]
[329497415,1718395864094,-559.05,0.00022739,3]
[329497416,1718395864109,-500.0,0.00022739,3]
[329497417,1718395864122,-744.96,0.00022739,3]
[329497418,1718395864146,-500.0,0.00022739,3]
[329497419,1718395864159,-500.0,0.00022739,3]
[329497420,1718395864177,-500.0,0.00022739,3]
[329497421,1718395864194,-500.0,0.00022739,3]
[329497422,1718395864215,-1637.39,0.00022739,3]
[329497423,1718395864238,-265.66660764,0.00022739,3]
[329497424,1718395864260,-2267.94,0.00022739,3]
[329497425,1718395864287,-632.88371493,0.00022739,3]
[329497426,1718395864312,-1409.75,0.00022739,3]
[329497427,1718395864327,-500.0,0.00022739,3]
[329497428,1718395864345,-584.01,0.00022739,3]
[329497429,1718395864359,-935.26,0.00022739,3]
[329497430,1718395864391,-1623.64,0.00022739,3]
[329497431,1718395864408,-1212.33,0.00022739,3]
[329497432,1718395864449,-500.0,0.00022739,3]
[329497433,1718395864461,-653.06,0.00022739,3]
[329497434,1718395864481,-500.0,0.00022739,3]
[329497435,1718395864517,-500.0,0.00022739,3]
[329497436,1718395864530,-500.0,0.00022739,3]
[329497437,1718395864545,-2062.88,0.00022739,3]
[329497438,1718395864577,-500.0,0.00022739,3]
[329497439,1718395864604,-500.0,0.00022739,3]
[329497440,1718395864616,-500.0,0.00022739,3]
[329497441,1718395864628,-863.57,0.00022739,3]
[329497442,1718395864638,-785.46,0.00022739,3]
[329497443,1718395864653,-1878.16,0.00022739,3]
[329497444,1718395864671,-1017.9,0.00022739,3]
[329497445,1718395864695,-500.0,0.00022739,3]
[329497446,1718395864714,-567.66,0.00022739,3]
[329497447,1718395864917,-221.808784,0.00022739,7]
[329497448,1718395864938,-759.34,0.00022739,3]
[329497449,1718395864961,-5709.54,0.00022739,3]
[329497450,1718395865014,-500.0,0.00022739,3]
[329497451,1718395865026,-632.42,0.00022739,3]
[329497452,1718395865068,-5663.87,0.00022739,3]
[329497453,1718395865114,-940.97,0.00022739,3]
[329497454,1718395865126,-964.88,0.00022739,3]
[329497455,1718395865171,-500.0,0.00022739,3]
[329497456,1718395865192,-788.33,0.00022739,3]